bitfinex-derivatives/quotes_SOLF0:USTF0_20220104
["timestamp","ask_amount","ask_price","bid_price","bid_amount"]
[1641286587045,4.16850611,168.43,168.42,4.18803103]
[1641286590847,4.16850611,168.43,168.41,1.37832117]
[1641286591547,12.56380923,168.47,168.41,1.37832117]
[1641286591748,12.56380923,168.45,168.41,4.18762877]
[1641286593054,4.18754379,168.42,168.41,4.18762877]
[1641286593553,53.4549,168.44,168.41,4.18762877]
[1641286593753,2.85737472,168.43,168.4,5.56594994]
[1641286594355,4.18779382,168.41,168.4,5.56594994]
[1641286597356,8.54579382,168.41,168.4,5.56594994]
[1641286597556,11.54579382,168.41,168.39,6.0]
[1641286598160,27.66479,168.4,168.39,6.0]
[1641286598359,27.66479,168.4,168.36,12.56056379]
[1641286598560,27.66479,168.4,168.35,5.93278158]
[1641286599058,84.56979,168.4,168.35,5.93278158]
[1641286599358,81.56979,168.4,168.35,5.93278158]
[1641286601961,84.56979,168.4,168.35,5.93278158]
[1641286602164,81.56979,168.4,168.35,5.93278158]
[1641286603064,84.56979,168.4,168.35,5.93278158]
[1641286603268,84.56979,168.4,168.33,12.56056379]
[1641286603466,97.13359923,168.4,168.32,12.56056379]
[1641286603865,94.13359923,168.4,168.35,6.0]
[1641286604865,97.13359923,168.4,168.35,6.0]
[1641286605666,94.13359923,168.4,168.35,6.0]
[1641286605868,97.13359923,168.4,168.35,6.0]
[1641286606065,94.13359923,168.4,168.35,6.0]
[1641286606267,27.66479,168.37,168.35,6.0]
[1641286607173,32.67079,168.37,168.35,6.0]
[1641286609776,5.006,168.37,168.35,6.0]
[1641286610274,32.67079,168.37,168.35,6.0]
[1641286612978,12.56380923,168.36,168.35,6.0]
[1641286614478,40.22859923,168.37,168.35,6.0]
[1641286616080,40.22859923,168.37,168.29,18.9362379]
[1641286616081,3.0,168.36,168.29,18.9362379]
[1641286616280,3.0,168.33,168.29,18.9362379]
[1641286616485,27.66479,168.32,168.29,18.9362379]
[1641286616982,30.66479,168.32,168.29,18.9362379]
[1641286617184,12.56380923,168.31,168.23,12.56056379]
[1641286617384,3.0,168.3,168.23,12.56056379]
[1641286617583,15.56380923,168.31,168.23,12.56056379]
[1641286617983,3.0,168.3,168.23,12.56056379]
[1641286618384,27.66479,168.28,168.23,12.56056379]
[1641286618584,34.29279,168.28,168.23,12.56056379]
[1641286620383,6.628,168.28,168.23,12.56056379]
[1641286620587,53.437,168.3,168.24,12.56056379]
[1641286620784,53.437,168.3,168.24,18.37356379]
[1641286620983,53.437,168.3,168.24,21.37356379]
[1641286621185,12.56380923,168.31,168.25,4.0]
[1641286621385,40.22859923,168.32,168.24,18.37356379]
[1641286623987,12.56380923,168.32,168.24,18.37356379]
[1641286624589,12.56380923,168.32,168.24,46.03835379]
[1641286624990,15.56380923,168.32,168.24,46.03835379]
[1641286625191,12.56380923,168.32,168.24,46.03835379]
[1641286629296,12.56380923,168.32,168.25,7.0]
[1641286629496,12.56380923,168.32,168.24,51.97483346]
[1641286629696,12.56380923,168.32,168.25,18.9363511]
[1641286630998,63.90040923,168.33,168.25,18.9363511]
[1641286632598,63.90040923,168.33,168.25,12.56056379]
[1641286632797,51.3366,168.33,168.24,51.76722654]
[1641286633599,51.3366,168.33,168.24,48.41426967]
[1641286634604,44.63191064,168.33,168.24,48.41426967]
[1641286635903,44.63191064,168.33,168.25,3.0]
[1641286636304,44.63191064,168.33,168.24,48.41426967]
[1641286636705,44.63191064,168.33,168.27,27.66479]
[1641286637806,44.63191064,168.33,168.27,44.22535379]
[1641286638008,44.63191064,168.33,168.27,40.22535379]
[1641286638410,12.56380923,168.34,168.27,40.22535379]
[1641286638609,52.1475,168.35,168.28,20.27960519]
[1641286639612,2.84713754,168.34,168.28,1.34330511]
[1641286643611,2.84713754,168.34,168.28,29.00809511]
[1641286644112,15.41094677,168.34,168.29,1.34330511]
[1641286645114,12.56380923,168.33,168.26,1.34330511]
[1641286645513,12.56380923,168.33,168.28,27.66479]
[1641286646515,12.56380923,168.33,168.29,1.34330511]
[1641286647916,2.84713754,168.34,168.29,1.34330511]
[1641286649016,12.56380923,168.33,168.29,1.34330511]
[1641286650226,2.84713754,168.34,168.29,1.34330511]
[1641286650421,2.84713754,168.34,168.29,7.20530511]
[1641286650721,15.41094677,168.34,168.29,7.20530511]
[1641286651822,2.84713754,168.34,168.3,1.34330511]
[1641286652424,2.84713754,168.34,168.29,1.34330511]
[1641286658233,4.18435538,168.33,168.3,4.18435538]
[1641286658635,4.18435538,168.33,168.31,4.18435538]
[1641286659433,4.18435538,168.33,168.29,1.34330511]
[1641286659434,2.84713754,168.34,168.29,5.52766049]
[1641286659833,2.84713754,168.34,168.29,11.52766049]
[1641286660634,4.18424233,168.32,168.29,10.18435538]
[1641286661634,4.18424233,168.32,168.31,27.66479]
[1641286662133,2.84713754,168.34,168.31,31.84914538]
[1641286662134,4.18424233,168.33,168.31,31.84914538]
[1641286662734,4.18424233,168.32,168.31,31.84914538]
[1641286663734,4.18424233,168.32,168.31,33.13219803]
[1641286664438,4.18424233,168.32,168.31,28.94784265]
[1641286666039,4.18424233,168.32,168.31,33.1380024]
[1641286666541,2.84713754,168.34,168.31,33.1380024]
[1641286667443,2.84713754,168.34,168.33,4.19015975]
[1641286672350,52.1475,168.35,168.33,4.19015975]
[1641286674550,2.90694461,168.34,168.32,5.4732124]
[1641286675049,2.90694461,168.34,168.31,31.85494975]
[1641286675850,2.90694461,168.34,168.32,5.47324847]
[1641286678153,2.90694461,168.34,168.32,4.19015975]
[1641286678353,2.90694461,168.34,168.31,31.85494975]
[1641286679857,2.90694461,168.34,168.31,4.19015975]
[1641286680457,2.90694461,168.34,168.31,31.85494975]
[1641286681759,2.90694461,168.34,168.33,7.0]
[1641286681959,12.56380923,168.37,168.33,12.351]
[1641286682161,3.74380923,168.37,168.36,7.0]
[1641286682361,3.74380923,168.38,168.36,34.66479]
[1641286682762,3.74380923,168.38,168.36,31.66479]
[1641286682962,50.8982,168.41,168.36,31.66479]
[1641286683163,4.18251046,168.4,168.37,4.19015975]
[1641286685163,56.3902,168.41,168.38,4.19015975]
[1641286689165,56.3902,168.41,168.39,4.19015975]
[1641286689568,50.8982,168.41,168.39,4.19015975]
[1641286689768,50.8982,168.41,168.37,4.19015975]
[1641286689969,50.8982,168.41,168.38,6.0]
[1641286692570,50.8982,168.41,168.38,33.66479]
[1641286693270,32.85759796,168.45,168.38,6.0]
[1641286693470,80.92859796,168.45,168.38,6.0]
[1641286694273,10.25844556,168.44,168.38,10.19015975]
[1641286694473,10.25844556,168.44,168.38,37.85494975]
[1641286696176,10.25844556,168.44,168.39,3.0]
[1641286696378,10.25844556,168.44,168.41,4.0]
[1641286696578,10.25844556,168.44,168.42,27.66479]
[1641286696780,32.85759796,168.46,168.42,27.66479]
[1641286696978,83.32119796,168.48,168.42,27.66479]
[1641286697882,50.4636,168.48,168.43,4.19015975]
[1641286699981,50.4636,168.48,168.42,31.85494975]
[1641286699982,10.25593976,168.47,168.42,31.85494975]
[1641286700482,15.21593976,168.47,168.42,31.85494975]
[1641286700686,4.96,168.47,168.43,4.19015975]
[1641286701685,50.4636,168.48,168.43,4.19015975]
[1641286703684,50.4636,168.48,168.42,27.66479]
[1641286703884,55.0966,168.48,168.42,27.66479]
[1641286704386,55.0966,168.48,168.38,37.66479]
[1641286704688,55.0966,168.48,168.38,33.66479]
[1641286704887,58.0966,168.48,168.38,33.66479]
[1641286705693,3.0,168.47,168.38,33.66479]
[1641286706788,58.0966,168.48,168.38,33.66479]
[1641286708688,43.11491982,168.47,168.39,4.19015975]
[1641286709088,46.11491982,168.47,168.39,4.19015975]
[1641286709489,43.11491982,168.47,168.39,4.19015975]
[1641286711890,46.11491982,168.47,168.39,4.19015975]
[1641286712090,43.11491982,168.47,168.39,4.19015975]
[1641286712291,46.11491982,168.47,168.39,4.19015975]
[1641286712690,43.11491982,168.47,168.39,4.19015975]
[1641286712990,12.56516504,168.45,168.41,4.19015975]
[1641286713892,12.56516504,168.44,168.4,4.19015975]
[1641286714091,18.72516504,168.44,168.4,4.19015975]
[1641286714490,6.16,168.44,168.4,4.19015975]
[1641286715994,18.7239799,168.44,168.4,4.19015975]
[1641286716592,6.16,168.44,168.4,4.19015975]
[1641286717894,4.18799273,168.41,168.4,4.19015975]
[1641286718495,6.16,168.44,168.4,4.19015975]
[1641286719098,4.18794842,168.41,168.4,4.19015975]
[1641286719498,7.18794842,168.41,168.33,32.85759796]
[1641286719697,5.948,168.42,168.27,4.0]
[1641286719698,3.0,168.37,168.35,12.56393604]
[1641286719897,8.133,168.37,168.35,12.56393604]
[1641286720098,5.133,168.37,168.35,12.56393604]
[1641286720300,8.133,168.37,168.35,12.56393604]
[1641286720499,5.133,168.37,168.35,12.56393604]
[1641286720999,27.66479,168.36,168.32,32.85759796]
[1641286721199,27.66479,168.36,168.27,84.74735147]
[1641286721200,27.66479,168.36,168.28,3.0]
[1641286721403,27.66479,168.36,168.27,34.66479]
[1641286721600,27.66479,168.36,168.28,3.0]
[1641286721802,27.66479,168.36,168.27,34.66479]
[1641286722201,20.96146218,168.36,168.27,34.66479]
[1641286722501,20.96146218,168.36,168.28,3.0]
[1641286722899,2.80085983,168.35,168.3,27.66479]
[1641286723601,2.80085983,168.38,168.31,1.38863783]
[1641286724101,2.80085983,168.38,168.32,3.0]
[1641286724802,2.80085983,168.38,168.31,8.38863783]
[1641286725006,2.80085983,168.38,168.34,27.66479]
[1641286725604,49.0614,168.39,168.34,27.66479]
[1641286727304,49.0614,168.39,168.31,4.0]
[1641286728205,3.01865111,168.38,168.31,4.0]
[1641286728906,3.01865111,168.38,168.34,27.66479]
[1641286730606,49.0614,168.39,168.34,27.66479]
[1641286731307,3.01850054,168.38,168.34,27.66479]
[1641286732708,49.0614,168.39,168.34,27.66479]
[1641286732909,49.0614,168.39,168.34,55.32958]
[1641286733208,3.03967433,168.38,168.34,55.32958]
[1641286735011,3.03967433,168.38,168.34,59.32958]
[1641286735411,3.03967433,168.38,168.35,1.14941525]
[1641286736314,3.03967433,168.41,168.35,1.14941525]
[1641286737516,3.03967433,168.41,168.35,4.14941525]
[1641286738717,3.03967433,168.41,168.36,1.14941525]
[1641286739018,3.03967433,168.41,168.4,27.66479]
[1641286739620,33.5166391,168.46,168.4,27.66479]
[1641286740019,33.5166391,168.46,168.4,34.66479]
[1641286740420,33.5166391,168.46,168.4,40.56079]
[1641286740421,28.0966391,168.46,168.4,40.56079]
[1641286740622,28.0966391,168.46,168.4,46.49110875]
[1641286741022,28.0966391,168.46,168.45,27.66479]
[1641286741223,28.0966391,168.46,168.45,34.33579]
[1641286741422,26.29121058,168.47,168.45,34.33579]
[1641286742026,10.89423897,168.47,168.45,34.33579]
[1641286742223,10.89423897,168.53,168.46,1.42965238]
[1641286743023,10.89423897,168.53,168.49,27.66479]
[1641286743723,10.89423897,168.53,168.45,27.66479]
[1641286743926,26.282738,168.53,168.45,27.66479]
[1641286745429,26.282738,168.53,168.45,30.66479]
[1641286746132,26.282738,168.53,168.46,7.0]
[1641286747535,10.89423897,168.53,168.46,7.0]
[1641286748932,10.89423897,168.53,168.46,4.0]
[1641286749131,10.89423897,168.53,168.49,27.66479]
[1641286749835,49.3266,168.54,168.49,27.66479]
[1641286752833,49.3266,168.54,168.45,14.8]
[1641286753337,49.3266,168.54,168.47,27.66479]
[1641286753834,49.3266,168.54,168.45,14.8]
[1641286755339,49.3266,168.54,168.46,27.66479]
[1641286755737,12.4179406,168.5,168.46,29.094422]
[1641286756240,12.4179406,168.5,168.46,27.66479]
[1641286757239,18.0359406,168.5,168.46,27.66479]
[1641286757942,12.4179406,168.48,168.46,27.66479]
[1641286758940,12.4179406,168.49,168.46,27.66479]
[1641286760546,12.4179406,168.48,168.46,27.66479]
[1641286762944,12.4179406,168.49,168.46,27.66479]
[1641286764544,12.4179406,168.48,168.46,27.66479]
[1641286765345,15.17467038,168.49,168.46,27.66479]
[1641286766147,15.17467038,168.49,168.45,14.8]
[1641286767247,12.4179406,168.48,168.45,14.8]
[1641286767447,16.6249406,168.48,168.45,14.8]
[1641286767952,2.75672978,168.47,168.45,14.8]
[1641286768551,15.17467038,168.49,168.45,14.8]
[1641286771456,2.75672978,168.49,168.46,1.42975858]
[1641286771955,15.17467038,168.49,168.45,14.8]
[1641286773560,15.17467038,168.49,168.47,27.66479]
[1641286776064,2.75672978,168.49,168.47,27.66479]
[1641286776967,2.75672978,168.49,168.45,14.8]
[1641286777667,15.17467038,168.49,168.45,14.8]
[1641286779070,2.75672978,168.49,168.45,14.8]
[1641286780371,7.38872978,168.49,168.45,14.8]
[1641286780572,4.18552634,168.47,168.46,5.615301]
[1641286781373,2.75672978,168.49,168.46,5.615301]
[1641286781573,2.75672978,168.49,168.46,33.280091]
[1641286781974,2.75672978,168.49,168.47,4.18552634]
[1641286782673,2.75672978,168.49,168.47,5.615301]
[1641286783675,49.309,168.5,168.47,5.615301]
[1641286783878,61.7269406,168.5,168.47,4.18552634]
[1641286784277,49.309,168.5,168.46,33.280091]
[1641286784478,2.75572412,168.49,168.46,4.18552634]
[1641286784878,49.309,168.5,168.46,4.18552634]
[1641286785079,61.86554169,168.5,168.46,5.6153137]
[1641286785677,2.75574308,168.49,168.46,5.6153137]
[1641286785878,2.75574308,168.49,168.46,33.2801037]
[1641286786381,61.86539028,168.5,168.46,31.85031634]
[1641286786984,49.309,168.5,168.46,31.85031634]
[1641286787181,2.75566778,168.49,168.46,31.85031634]
[1641286787679,49.309,168.5,168.46,31.85031634]
[1641286787880,12.5564341,168.49,168.46,27.66479]
[1641286788584,12.5564341,168.49,168.47,4.0]
[1641286788784,2.75519183,168.49,168.47,9.61540282]
[1641286788986,2.75519183,168.49,168.47,12.61540282]
[1641286789183,12.55520493,168.51,168.47,9.61540282]
[1641286789782,12.55520493,168.51,168.47,8.18552634]
[1641286791287,43.62219853,168.55,168.47,8.18552634]
[1641286792085,12.555075,168.51,168.47,8.18552634]
[1641286792686,12.54561149,168.52,168.47,4.18552634]
[1641286793486,12.54561149,168.51,168.46,31.85031634]
[1641286794286,12.54561149,168.51,168.46,27.66479]
[1641286794488,12.54561149,168.5,168.46,27.66479]
[1641286795288,10.13700806,168.55,168.46,27.66479]
[1641286795289,12.54561149,168.51,168.46,31.85031634]
[1641286797094,4.18221378,168.47,168.46,31.85031634]
[1641286797993,60.6852,168.5,168.46,31.85031634]
[1641286799194,4.18218245,168.47,168.46,31.85031634]
[1641286800097,60.6852,168.5,168.46,31.85031634]
[1641286800697,4.18216849,168.47,168.46,31.85031634]
[1641286801198,4.18216849,168.47,168.46,34.85031634]
[1641286801398,60.6852,168.5,168.46,31.85031634]
[1641286801799,12.54561149,168.51,168.46,31.85031634]
[1641286802100,12.54561149,168.51,168.46,27.66479]
[1641286802299,12.54561149,168.53,168.46,27.66479]
[1641286802499,12.54561149,168.53,168.47,4.0]
[1641286802699,12.54561149,168.53,168.5,27.66479]
[1641286803702,12.54561149,168.53,168.52,4.0]
[1641286804501,12.54561149,168.57,168.52,4.0]
[1641286804704,12.54561149,168.57,168.52,8.542]
[1641286805103,12.54561149,168.57,168.52,4.542]
[1641286806207,12.54561149,168.57,168.51,3.0]
[1641286807005,12.54561149,168.57,168.5,38.01307076]
[1641286808306,12.54561149,168.57,168.5,35.01307076]
[1641286808507,12.54561149,168.57,168.5,31.01307076]
[1641286809208,12.54561149,168.57,168.5,40.03307076]
[1641286809708,12.54561149,168.56,168.5,40.03307076]
[1641286809909,12.54561149,168.56,168.52,6.0]
[1641286811411,12.54561149,168.55,168.52,6.0]
[1641286811710,18.10961149,168.55,168.52,6.0]
[1641286812512,12.54561149,168.53,168.52,6.0]
[1641286813112,5.564,168.55,168.52,6.0]
[1641286813813,43.4518733,168.56,168.52,6.0]
[1641286814015,12.55387558,168.53,168.52,6.0]
[1641286814614,12.54093209,168.54,168.52,6.0]
[1641286815514,9.96668283,168.56,168.52,6.0]
[1641286815515,12.54093209,168.53,168.52,6.0]
[1641286816316,12.54093209,168.54,168.52,6.0]
[1641286817118,12.54093209,168.55,168.52,6.0]
[1641286817415,12.54093209,168.55,168.54,3.0]
[1641286817616,50.08256147,168.63,168.54,8.9246971]
[1641286817817,41.16256147,168.63,168.62,3.0]
[1641286818017,8.10256147,168.63,168.62,9.025]
[1641286818218,52.385,168.7,168.62,9.025]
[1641286818517,52.385,168.7,168.65,4.0]
[1641286818916,52.385,168.7,168.67,27.66479]
[1641286819117,30.66479,168.76,168.67,27.66479]
[1641286819318,27.66479,168.76,168.67,27.66479]
[1641286819517,30.66479,168.76,168.67,27.66479]
[1641286819723,23.97598878,168.76,168.67,27.66479]
[1641286819920,23.97598878,168.76,168.67,30.66479]
[1641286820121,23.97598878,168.76,168.67,27.66479]
[1641286820520,29.90051037,168.76,168.63,3.0]
[1641286820721,29.90051037,168.76,168.59,4.0]
[1641286820920,27.66479,168.7,168.62,27.66479]
[1641286821121,33.65379,168.7,168.62,27.66479]
[1641286821522,33.65379,168.7,168.62,30.66479]
[1641286822621,33.65379,168.7,168.62,27.66479]
[1641286823022,33.65379,168.7,168.62,30.66479]
[1641286823322,33.65379,168.7,168.62,27.66479]
[1641286823521,33.65379,168.7,168.62,30.66479]
[1641286824822,33.65379,168.7,168.62,27.66479]
[1641286825023,33.65379,168.7,168.63,3.0]
[1641286825423,33.65379,168.7,168.64,3.0]
[1641286825625,33.65379,168.7,168.65,3.0]
[1641286825824,33.65379,168.7,168.62,27.66479]
[1641286826026,33.65379,168.7,168.65,3.0]
[1641286826225,33.65379,168.7,168.63,3.0]
[1641286826427,33.65379,168.7,168.6,16.13881955]
[1641286826626,53.0779,168.69,168.6,13.13881955]
[1641286826826,53.0779,168.69,168.59,27.66479]
[1641286827025,27.66479,168.66,168.59,30.66479]
[1641286827227,33.94679,168.66,168.59,27.66479]
[1641286827628,33.94679,168.66,168.6,3.0]
[1641286828727,33.94679,168.66,168.62,3.0]
[1641286829928,33.94679,168.66,168.59,27.66479]
[1641286830131,33.94679,168.66,168.63,2.37385084]
[1641286830730,33.94679,168.66,168.6,5.37385084]
[1641286830930,33.94679,168.66,168.62,3.0]
[1641286831129,33.94679,168.66,168.6,2.37385084]
[1641286831330,33.94679,168.66,168.6,5.37385084]
[1641286831533,33.94679,168.66,168.63,2.37385084]
[1641286832231,33.94679,168.66,168.61,2.37385084]
[1641286834232,33.94679,168.66,168.6,2.37385084]
[1641286835837,6.282,168.66,168.6,2.37385084]
[1641286836036,53.0779,168.69,168.6,5.37385084]
[1641286836836,53.0779,168.69,168.6,3.0]
[1641286837036,53.0779,168.69,168.55,4.0]
[1641286837236,27.66479,168.66,168.57,33.58931159]
[1641286837436,33.92979,168.66,168.57,33.58931159]
[1641286837635,33.92979,168.66,168.58,2.34611854]
[1641286840039,33.92979,168.66,168.58,8.34611854]
[1641286840640,6.265,168.66,168.58,8.34611854]
[1641286840841,27.66479,168.68,168.58,8.34611854]
[1641286841141,27.66479,168.68,168.59,2.34611854]
[1641286841340,27.66479,168.68,168.6,3.0]
[1641286841541,27.66479,168.68,168.59,2.34611854]
[1641286841742,53.0779,168.69,168.59,5.34611854]
[1641286841941,53.0779,168.69,168.61,2.34611854]
[1641286842142,53.0779,168.69,168.61,5.34611854]
[1641286842750,53.0779,168.69,168.61,3.0]
[1641286842949,53.0779,168.69,168.6,2.34611854]
[1641286843348,53.0779,168.69,168.61,27.66479]
[1641286844151,53.0779,168.69,168.62,11.39063264]
[1641286845552,53.0779,168.69,168.62,44.45482657]
[1641286846454,53.0779,168.69,168.62,11.39063264]
[1641286847256,1.83527068,168.68,168.59,57.76593775]
[1641286847956,57.5759,168.69,168.64,12.54496272]
[1641286849561,27.66479,168.68,168.64,12.54496272]
[1641286853364,27.66479,168.68,168.66,12.54496272]
[1641286855166,27.66479,168.68,168.63,12.54496272]
[1641286855365,31.88479,168.68,168.63,12.54496272]
[1641286855767,27.66479,168.64,168.63,12.54496272]
[1641286855968,32.96579,168.64,168.63,12.54496272]
[1641286856366,5.301,168.64,168.63,12.54496272]
[1641286856768,5.301,168.64,168.62,12.54496272]
[1641286858368,5.301,168.64,168.61,12.54496272]
[1641286858570,27.66479,168.65,168.61,12.54496272]
[1641286859871,27.66479,168.65,168.61,6.272e-05]
[1641286860069,27.66479,168.62,168.61,6.272e-05]
[1641286860268,31.87879,168.62,168.61,6.272e-05]
[1641286860469,31.87879,168.62,168.59,2.34611854]
[1641286861972,31.87879,168.62,168.61,4.17820799]
[1641286862371,31.87879,168.62,168.59,2.34611854]
[1641286862971,27.66479,168.62,168.59,2.34611854]
[1641286868976,27.66479,168.62,168.59,5.34611854]
[1641286869474,27.66479,168.62,168.59,2.34611854]
[1641286871178,27.66479,168.65,168.6,3.0]
[1641286871380,27.66479,168.65,168.59,7.31211854]
[1641286871978,27.66479,168.65,168.6,2.34611854]
[1641286872779,27.66479,168.65,168.61,2.34611854]
[1641286873382,27.66479,168.65,168.62,2.34611854]
[1641286874083,27.66479,168.65,168.63,2.34611854]
[1641286874683,27.66479,168.65,168.64,2.34611854]
[1641286879286,65.9189,168.67,168.64,2.34611854]
[1641286879987,59.22843711,168.67,168.65,2.34611854]
[1641286880587,27.66479,168.66,168.65,2.34611854]
[1641286880987,27.66479,168.66,168.6,12.0445141]
[1641286881487,47.28419393,168.74,168.6,15.38946594]
[1641286881688,5.44,168.74,168.6,12.38946594]
[1641286881889,5.44,168.74,168.6,15.38946594]
[1641286882490,29.64832718,168.71,168.61,33.06419393]
[1641286883288,62.29093718,168.7,168.61,9.0445141]
[1641286883488,66.97893718,168.7,168.61,9.0445141]
[1641286883888,1.98353718,168.69,168.61,9.0445141]
[1641286884489,27.66479,168.67,168.61,9.0445141]
[1641286884790,27.66479,168.67,168.6,12.0445141]
[1641286885892,27.66479,168.67,168.6,9.0445141]
[1641286886691,1.98433029,168.66,168.6,9.0445141]
[1641286886891,73.61973029,168.66,168.6,9.0445141]
[1641286887391,1.98433029,168.65,168.59,59.7262]
[1641286887592,1.98433029,168.65,168.58,6.0]
[1641286887891,1.98433029,168.65,168.59,3.0]
[1641286888791,1.98433029,168.65,168.58,14.48322477]
[1641286888996,1.98433029,168.65,168.59,3.0]
[1641286889596,27.66479,168.67,168.59,3.0]
[1641286890194,27.66479,168.67,168.61,12.54419967]
[1641286890195,2.04556902,168.66,168.61,12.54419967]
[1641286890395,6.33456902,168.66,168.61,12.54419967]
[1641286890796,4.289,168.66,168.61,12.54419967]
[1641286893400,4.289,168.66,168.62,12.54419967]
[1641286894097,4.289,168.66,168.61,12.54419967]
[1641286895398,2.0460733,168.65,168.61,12.54419967]
[1641286896101,4.289,168.66,168.61,12.54419967]
[1641286896300,27.66479,168.67,168.61,12.54419967]
[1641286897202,27.66479,168.67,168.62,12.54419967]
[1641286897401,64.3565,168.66,168.62,12.54419967]
[1641286897600,70.6565,168.66,168.62,12.54419967]
[1641286898603,98.32129,168.66,168.62,12.54419967]
[1641286899906,98.32129,168.66,168.62,18.54419967]
[1641286900807,98.32129,168.66,168.63,2.13575533]
[1641286901908,70.6565,168.66,168.63,2.13575533]
[1641286902609,98.32129,168.66,168.63,2.13575533]
[1641286904208,33.96479,168.66,168.63,2.13575533]
[1641286904410,27.66479,168.66,168.63,5.13575533]
[1641286904610,27.66479,168.66,168.63,2.13575533]
[1641286904811,27.66479,168.66,168.64,12.54419967]
[1641286906813,27.66479,168.66,168.63,14.679955]
[1641286907012,34.00179,168.66,168.63,14.679955]
[1641286907411,34.00179,168.66,168.65,12.54419967]
[1641286909122,34.00179,168.66,168.63,2.13575533]
[1641286909721,34.00179,168.66,168.65,12.54193675]
[1641286910622,34.00179,168.66,168.64,12.54193675]
[1641286912022,34.00179,168.66,168.62,6.0]
[1641286912221,34.00179,168.66,168.63,12.5439355]
[1641286912621,27.66479,168.64,168.63,12.5439355]
[1641286913623,27.66479,168.64,168.62,6.0]
[1641286916025,6.337,168.66,168.62,6.0]
[1641286916226,63.508,168.69,168.62,6.0]
[1641286916725,55.32958,168.63,168.62,6.0]
[1641286916925,59.78858,168.63,168.62,6.0]
[1641286919226,4.459,168.63,168.62,6.0]
[1641286920728,59.78858,168.63,168.56,11.82884641]
[1641286921330,59.78858,168.63,168.56,3.34562164]
[1641286922135,59.78858,168.63,168.56,11.45697792]
[1641286922734,59.78858,168.63,168.56,8.11135628]
[1641286923036,27.66479,168.6,168.56,8.11135628]
[1641286923634,64.4127,168.62,168.56,8.11135628]
[1641286923835,64.4127,168.62,168.53,33.06419393]
[1641286924034,64.4127,168.62,168.54,3.0]
[1641286924235,64.4127,168.62,168.53,33.06419393]
[1641286924835,27.66479,168.6,168.53,33.06419393]
[1641286925236,27.66479,168.6,168.54,36.06419393]
[1641286925437,27.66479,168.6,168.54,33.06419393]
[1641286926135,27.66479,168.6,168.54,39.06419393]
[1641286926335,27.66479,168.6,168.54,6.0]
[1641286928840,27.66479,168.6,168.54,39.06419393]
[1641286930243,27.66479,168.6,168.55,33.06419393]
[1641286930843,27.66479,168.6,168.54,39.06419393]
[1641286931144,33.06379,168.6,168.54,39.06419393]
[1641286931943,33.06379,168.6,168.54,34.69179393]
[1641286932343,5.93172584,168.56,168.5,3.34567067]
[1641286932544,10.69772584,168.56,168.49,33.46635008]
[1641286932947,5.93278158,168.53,168.44,50.17588328]
[1641286933146,55.32958,168.45,168.44,34.17588328]
[1641286933346,60.95958,168.45,168.44,34.17588328]
[1641286933847,66.89535492,168.45,168.41,7.33895257]
[1641286934245,60.95958,168.45,168.41,7.33895257]
[1641286934447,5.93753711,168.42,168.35,50.2192985]
[1641286934647,5.93753711,168.42,168.23,3.0]
[1641286935049,3.0,168.24,168.2,27.66479]
[1641286935249,3.0,168.22,168.18,3.35168778]
[1641286935849,3.0,168.19,168.18,3.35168778]
[1641286936049,6.028,168.19,168.18,3.35168778]
[1641286936249,6.028,168.19,168.11,3.35168778]
[1641286936849,6.028,168.19,168.09,5.94141762]
[1641286937050,3.0,168.17,168.08,27.66479]
[1641286937251,27.66479,168.16,168.08,27.66479]
[1641286937653,3.0,168.09,168.08,27.66479]
[1641286937850,3.0,168.15,168.06,5.94265339]
[1641286938251,27.66479,168.16,168.06,5.94265339]
[1641286938450,3.0,168.15,168.06,5.94265339]
[1641286938650,7.688,168.15,168.06,5.94265339]
[1641286938851,7.688,168.15,168.05,4.14129131]
[1641286938852,3.0,168.07,168.05,4.14129131]
[1641286939050,3.0,168.06,168.05,4.14129131]
[1641286939653,6.0,168.06,167.96,4.14129131]
[1641286939851,5.95078699,168.06,167.96,4.14129131]
[1641286940052,5.157,168.07,167.96,4.14129131]
[1641286940255,7.13585108,168.05,167.95,27.66479]